Cogmind - Beta 11 X9 @@@ ROGUE MODE // 2022.01.23 @ 19:12:07 Player: MTF Result: Destroyed by H-55 Commando with Gauss Rifle Performance ------------- Evolutions (1) 500 Regions Visited (5) 1000 Robots Destroyed (86) 430 Value Destroyed (2144) 2144 Prototype IDs (27) 540 Alien Tech Used (0) 0 Bonus (344) 344 TOTAL SCORE: 4958 Bonus ------- High Alert Combat Kills 44 Aligned with FarCom 300 Cogmind --------- Core Integrity 0/400 Matter 38/300 Energy 160/160 System Corruption 12% Temperature Cool (16) Movement Treading (160) Location -9/Exiles Parts ------- > --- POWER (1) -------- Light Nuclear Core > --- PROPULSION (3) --- Light Treads > --- UTILITY (3) ------ (None) > --- WEAPON (2) ------- (None) > --- INVENTORY (5) ---- Combat Airjet Assault Rifle Heavy Assault Rifle Heavy Assault Rifle Scythe Peak State ------------ > --- POWER ------------ Light Nuclear Core > --- PROPULSION ------- Light Treads Light Treads Light Treads > --- UTILITY ---------- Humpback Light Armor Plating > --- WEAPON ----------- YOLO Cannon > --- INVENTORY -------- Reinforced Deuterium Engine Reinforced Deuterium Engine Light Fission Core Combat Airjet Combat Airjet Large Storage Unit Assault Rifle Assault Rifle Assault Rifle Assault Rifle Heavy Assault Rifle Heavy Assault Rifle Scythe Longsword +1 [Rating: 33] Favorites ----------- Power Improved Ion Engine Engine Improved Ion Engine Power Core Light Nuclear Core Propulsion Light Treads Treads Light Treads Leg Aluminum Leg Utility Large Storage Unit Device Improved Terrain Scanner Storage Large Storage Unit Processor Targeting Computer Protection Medium Armor Plating Weapon Heavy Assault Rifle Energy Gun EM Pulse Gun Energy Cannon YOLO Cannon Ballistic Gun Heavy Assault Rifle Launcher Rocket Launcher Special Weapon Mining Laser Slashing Weapon Longsword +1 Build | -11 -10 -10 -9 -9 -9 ------- Run | Scr Mat Min Mat Min Exi Slots Evolved 2 | . . . 2 . . Power . | . . . . . . Propulsion 1 | . . . 1 . . Utility 1 | . . . 1 . . Weapon . | . . . . . . Parts Attached 67 | 4 17 7 19 4 16 Power 6 | 1 2 1 1 . 1 Engine 5 | 1 2 1 1 . . Core 1 | . . . . . 1 Reactor . | . . . . . . Propulsion 17 | 2 2 1 8 . 4 Treads 17 | 2 2 1 8 . 4 Leg . | . . . . . . Wheel . | . . . . . . Hover . | . . . . . . Flight . | . . . . . . Utility 11 | 1 2 . 5 . 3 Device 1 | 1 . . . . . Storage 2 | . 1 . . . 1 Processor 2 | . 1 . 1 . . Hackware . | . . . . . . Protection 6 | . . . 4 . 2 Artifact . | . . . . . . Weapon 33 | . 11 5 5 4 8 Energy Gun . | . . . . . . Energy Cannon 1 | . . . . . 1 Ballistic Gun 20 | . 7 3 3 2 5 Ballistic Cannon . | . . . . . . Launcher 6 | . . 1 2 2 1 Special Weapon 5 | . 4 1 . . . Impact Weapon . | . . . . . . Slashing Weapon 1 | . . . . . 1 Piercing Weapon . | . . . . . . Special Melee Weapon . | . . . . . . Unidentified Prototypes . | . . . . . . Parts Lost 17 | . . . 2 1 14 Power 1 | . . . . . 1 Propulsion 6 | . . . . . 6 Utility 5 | . . . 1 1 3 Weapon 5 | . . . 1 . 4 Highest Loss Streak 10 | . . . 2 1 10 Average Slot Usage (%) 89 | . 98 100 99 96 71 Engine 11 | . 14 14 10 11 10 Treads 30 | . 27 28 33 33 32 Storage 12 | . 14 14 11 11 11 Processor 6 | . 12 14 8 . . Protection 7 | . . . 13 18 10 Ballistic Gun 16 | . 22 22 21 22 5 Naked Turns . | . . . . . . Heaviest Build 223 | 13 31 32 47 47 223 Greatest Support 60 | 40 40 40 60 60 60 Greatest Overweight (x) 5 | . . . . . 5 Average Overweight (x) . | . . . . . 1 Largest Inventory Capacity 35 | 8 15 15 15 15 35 Average Capacity 20 | 8 14 15 15 15 32 Most Carried 24 | 7 15 15 15 15 24 Average Carried 15 | 5 12 14 14 15 19 Final Capacity 15 | 8 15 15 15 15 5 Final Carried 15 | 5 15 15 15 15 5 Class Distribution -------------------- 42% | Mutant 30% | Hauler-Mutant 27% | Scavenger-Mutant Dominant Class ---------------- Mutant | -10/Materials Mutant | -10/Mines Scavenger-Mutant | -9/Materials Scavenger-Mutant | -9/Mines Hauler-Mutant | -9/Exiles Resources | -11 -10 -10 -9 -9 -9 ----------- Run | Scr Mat Min Mat Min Exi Matter Collected 1908 | 267 481 358 574 84 144 Remotely . | . . . . . . Salvage Created 2970 | 122 545 239 1309 197 558 Parts 197 | 13 28 13 99 18 26 Haulers Intercepted 6 | . 1 . 5 . . Recyclers Shooed 6 | . 3 1 1 1 . Parts Field Recycled . | . . . . . . Retrieved Matter . | . . . . . . Parts Self-Destructed . | . . . . . . Prevented . | . . . . . . Kills | -11 -10 -10 -9 -9 -9 ------- Run | Scr Mat Min Mat Min Exi Combat Hostiles Destroyed 67 | . 9 11 23 7 17 Guns 41 | . 9 8 17 1 6 Cannons 3 | . . . . . 3 AOE 21 | . . 3 6 6 6 Classes Destroyed 14 | 2 4 2 4 . 2 Worker 4 | . . 1 3 . . Builder 2 | . . . 1 1 . Tunneler 4 | 4 . . . . . Hauler 6 | . 1 . 5 . . Recycler 8 | 1 2 2 2 1 . Operator 1 | . . . 1 . . Watcher 3 | . 1 . 2 . . Swarmer 16 | . 3 2 7 4 . Grunt 23 | . 6 . 8 3 6 Brawler 4 | . . . 1 . 3 Sentry 7 | . . . 7 . . Hunter 5 | . . . . . 5 Programmer 3 | . . . . . 3 Assembled 9 | . . 9 . . . Best Kill Streak 10 | 3 2 3 6 5 10 Combat Bots Only 10 | . 2 3 5 4 10 Max Kills in Single Turn 4 | 2 1 2 4 3 3 Gunslinging . | . . . . . . Exploded 3 | . . 1 3 2 2 Melee . | . . . . . . Uniques/NPCs Destroyed . | . . . . . . Combat | -11 -10 -10 -9 -9 -9 -------- Run | Scr Mat Min Mat Min Exi Damage Taken 3285 | 36 312 336 717 84 1800 Core 468 | . 39 101 113 13 202 Absorbed by Shields . | . . . . . . Core Remaining (%) 72 | 100 . 44 . . . Volleys Fired 208 | 9 57 33 64 7 38 Largest 2 | 2 2 2 2 2 2 Hottest 100 | 60 100 100 46 46 100 Shots Fired 366 | 18 102 53 123 11 59 Gun 329 | 18 90 46 121 8 46 Cannon 9 | . . . . . 9 Launcher 15 | . . 6 2 3 4 Special 13 | . 12 1 . . . Kinetic 320 | 9 90 46 121 8 46 Thermal 22 | . 12 1 . . 9 Explosive 15 | . . 6 2 3 4 Electromagnetic 9 | 9 . . . . . Robot Hit Streak 13 | 7 13 11 11 6 8 Robot Miss Streak 6 | 2 5 6 3 1 2 Penetration Max . | . . . . . . Secondary Targets 3 | . . . 1 . 2 Max Gunslinging Chain 1 | . . . 1 . 1 Shots Hit Robots 244 | 12 62 29 92 6 43 Core Hits 139 | 6 25 21 49 12 26 Critical Kills 3 | . 1 . . . 2 Critical Parts Destroyed . | . . . . . . Critical Strikes 4 | 1 1 . . . 2 Meltdown 2 | . . . . . 2 Destroy 1 | . 1 . . . . Corrupt 1 | 1 . . . . . Melee Attacks 1 | . . . . . 1 Impact . | . . . . . . Slashing 1 | . . . . . 1 Piercing . | . . . . . . Sneak Attacks . | . . . . . . Combat Hostiles . | . . . . . . Follow-up Attacks . | . . . . . . Damage Inflicted 6618 | 316 902 640 2110 532 2118 Guns 3442 | 170 825 452 1442 69 484 Cannons 718 | . . . . . 718 Explosions 2329 | 137 . 188 627 461 916 Melee . | . . . . . . Ramming 129 | 9 77 . 41 2 . Kinetic 3359 | 87 825 452 1442 69 484 Thermal 1697 | 137 . . 258 . 1302 Explosive 1350 | . . 188 369 461 332 Electromagnetic 83 | 83 . . . . . Impact . | . . . . . . Slashing . | . . . . . . Piercing . | . . . . . . Highest Corruption 12 | . . . 7 7 12 Average Corruption 7 | . . . 6 7 7 Corruption Purged . | . . . . . . Effects 73 | . . . 9 3 61 Message Errors 18 | . . . 1 . 17 Matter Fused 18 | . . . 2 1 15 Heat Flow Errors 3 | . . . . . 3 Energy Discharges 13 | . . . . 1 12 Data Loss (minor) 11 | . . . 3 1 7 Data Loss (major) 4 | . . . . . 4 Misfires 1 | . . . . . 1 Weapon Failures 5 | . . . 3 . 2 Overload Shots . | . . . . . . Overflow Damage 152 | 23 . 3 62 . 64 Projectiles 48 | . . . . . 48 Explosions 104 | 23 . 3 62 . 16 Melee . | . . . . . . Knockbacks 1 | . 1 . . . . Impact 1 | . 1 . . . . Kinetic . | . . . . . . Secondary . | . . . . . . Self-Inflicted Damage 186 | 36 . . 19 41 90 Shots 4 | 1 . . 1 1 1 Rammed 20 | 1 15 . 3 1 . Targets Rammed 22 | 1 15 . 5 1 . Kicked . | . . . . . . Crushed 2 | . . . 2 . . Highest Temperature 235 | 12 40 20 23 5 235 Average Temperature 29 | 12 13 10 8 5 52 Received Heat Transfer 549 | . 162 . 162 9 216 Siege Activations . | . . . . . . Robots Corrupted . | . . . . . . Combat Hostiles . | . . . . . . Parts Fried 1 | 1 . . . . . Impact Corruptions . | . . . . . . Robots Melted 2 | . . . . . 2 Combat Hostiles 2 | . . . . . 2 Parts Melted 1 | . . 1 . . . Heat Transferred 1260 | 150 . . 150 . 960 Parts Sabotaged . | . . . . . . Parts Stolen . | . . . . . . Parts Stripped . | . . . . . . Power Chain Reactions 2 | 2 . . . . . Missiles Intercepted . | . . . . . . Alert | -11 -10 -10 -9 -9 -9 ------- Run | Scr Mat Min Mat Min Exi Peak Influence 578 | 25 247 78 578 370 . Initial 195 | . 16 31 29 195 . Average 139 | 14 69 28 260 276 . Maximum Alert Level 2 | . 1 . 2 1 . Low Security (%) 77 | 100 97 100 47 41 . Level 1 15 | . 2 . 29 58 . Level 2 7 | . . . 22 . . Level 3 . | . . . . . . Level 4 . | . . . . . . Level 5 . | . . . . . . High Security . | . . . . . . Max Security . | . . . . . . Squads Dispatched 8 | . 3 1 4 . . Investigation 5 | . 3 1 1 . . Extermination . | . . . . . . Reinforcement 3 | . . . 3 . . Assault . | . . . . . . Garrison . | . . . . . . Intercept . | . . . . . . Construction Impeded . | . . . . . . Haulers Reinforced . | . . . . . . Active Scanning Responses . | . . . . . . Cargo Convoy Interrupts . | . . . . . . Stealth | -11 -10 -10 -9 -9 -9 --------- Run | Scr Mat Min Mat Min Exi Distress Signals 5 | . . 1 4 . . Communications Jammed . | . . . . . . Distress Signals . | . . . . . . Times Spotted 91 | . 19 9 35 7 21 Peak Tracking Total 6 | . 3 2 4 4 6 Tactical Retreats 4 | . 2 . 2 . . Traps | -11 -10 -10 -9 -9 -9 ------- Run | Scr Mat Min Mat Min Exi Traps Triggered 2 | . 1 . 1 . . Indirectly . | . . . . . . Trap Hack Attempts . | . . . . . . Triggered . | . . . . . . Disarmed . | . . . . . . Reprogrammed . | . . . . . . Reused . | . . . . . . Traps Extracted . | . . . . . . Installed . | . . . . . . Triggered . | . . . . . . Machines | -11 -10 -10 -9 -9 -9 ---------- Run | Scr Mat Min Mat Min Exi Machines Disabled 10 | . 1 1 4 1 3 Max in Single Turn 3 | . 1 . 3 1 1 Machines Sabotaged . | . . . . . . Garrisons Compromised . | . . . . . . Overloaded Fab Kills . | . . . . . . Hacking | -11 -10 -10 -9 -9 -9 --------- Run | Scr Mat Min Mat Min Exi Machines Accessed 16 | . 7 1 6 . 2 Terminals 10 | . 4 1 5 . . Fabricators . | . . . . . . Repair Stations 1 | . 1 . . . . Recycling Units 3 | . 2 . 1 . . Scanalyzers . | . . . . . . Garrison Access . | . . . . . . Total Hacks 45 | . 23 7 13 . 2 Successful 26 | . 16 2 6 . 2 Failed 18 | . 6 5 7 . . Catastrophic 1 | . 1 . . . . Database Lockouts 1 | . 1 . . . . Manual 25 | . 11 8 5 . 1 Terminals 30 | . 12 7 11 . . Fabricators . | . . . . . . Repair Stations 9 | . 9 . . . . Recycling Units 4 | . 2 . 2 . . Scanalyzers . | . . . . . . Garrison Access . | . . . . . . Terminal Hacks 14 | . 5 2 5 . 2 Record 1 | . . . . . 1 Robot Analysis 3 | . 1 2 . . . Prototype ID Bank 2 | . 2 . . . . Terminal Index 1 | . 1 . . . . Alert Level 1 | . 1 . . . . Locate Traps 3 | . . . 3 . . Hauler Manifests 1 | . . . 1 . . Zone Layout 1 | . . . 1 . . EX-Prototype ID Bank 1 | . . . . . 1 Fabricator Hacks . | . . . . . . Repair Station Hacks 8 | . 8 . . . . Scan Component 4 | . 4 . . . . Repair 4 | . 4 . . . . Recycling Unit Hacks . | . . . . . . Scanalyzer . | . . . . . . Garrison Access Hacks . | . . . . . . Unauthorized Hacks 4 | . 3 . 1 . . Terminals 1 | . 1 . . . . Operators 1 | . 1 . . . . Fabricators . | . . . . . . Repair Stations . | . . . . . . Recycling Units 3 | . 2 . 1 . . Tunnel 3 | . 2 . 1 . . Scanalyzers . | . . . . . . Garrison Access . | . . . . . . Data Cores Recovered 1 | . . . 1 . . Used 1 | . . . 1 . . Hacking Detections 11 | . 5 1 5 . . Full Trace Events 1 | . . 1 . . . Feedback Events . | . . . . . . Feedback Blocked . | . . . . . . Robot Schematics Acquired . | . . . . . . Robots Built . | . . . . . . Authchips . | . . . . . . Time . | . . . . . . Total Robot Build Rating . | . . . . . . Part Schematics Acquired . | . . . . . . Parts Built . | . . . . . . Authchips . | . . . . . . Time . | . . . . . . Total Part Build Rating . | . . . . . . Parts Repaired 4 | . 4 . . . . Time 104 | . 104 . . . . Parts Recycled . | . . . . . . Recycled Matter . | . . . . . . Retrieved Matter . | . . . . . . Retrieved Components . | . . . . . . Parts Scanalyzed . | . . . . . . Part Schematics Acquired . | . . . . . . Parts Damaged . | . . . . . . Bothacking | -11 -10 -10 -9 -9 -9 ------------ Run | Scr Mat Min Mat Min Exi Used RIF Installer . | . . . . . . Robots Hacked . | . . . . . . Non-combat . | . . . . . . Combat . | . . . . . . Robot Hacks Applied . | . . . . . . Relay Couplers Released . | . . . . . . Fabnet Peak Effective % . | . . . . . . Robots Rewired . | . . . . . . Allies Hacked . | . . . . . . Hacks Repelled . | . . . . . . Allies | -11 -10 -10 -9 -9 -9 -------- Run | Scr Mat Min Mat Min Exi Total Allies 3 | . . 3 . . . Largest Group 3 | . . 3 2 . . Highest-Rated Group 40 | . . 40 24 . . Highest-Rated Ally 16 | . . 16 16 . . Total Orders . | . . . . . . Ally Attacks 9 | . . 9 . . . Total Damage 87 | . . 87 . . . Kills . | . . . . . . Allies Corrupted . | . . . . . . Allies Melted . | . . . . . . Intel | -11 -10 -10 -9 -9 -9 ------- Run | Scr Mat Min Mat Min Exi Robot Analysis Total 3 | . 1 2 . . . Derelict Logs Recovered 1 | . . 1 . . . Drone Launches . | . . . . . . Drone Recoveries . | . . . . . . Exploration | -11 -10 -10 -9 -9 -9 ------------- Run | Scr Mat Min Mat Min Exi Turns Passed 5701 | 102 1305 733 1274 236 2051 Spaces Moved 2253 | 26 581 389 625 132 500 Core . | . . . . . . Treads 2238 | 11 581 389 625 132 500 Legs 15 | 15 . . . . . Wheels . | . . . . . . Hover . | . . . . . . Flight . | . . . . . . Fastest Speed 120 | 120 160 160 160 160 160 Average Speed 193 | 136 160 160 160 160 312 Slowest Speed 560 | 160 160 160 160 160 560 Overloaded Moves . | . . . . . . Propulsion Burnouts . | . . . . . . Robots Hopped . | . . . . . . Cave-ins Triggered . | . . . . . . Exploration Rate (%) 61 | 2 99 79 63 52 71 Regions Visited 5 Branch Regions 3 Pre-discovered Areas 4 | . 2 . 1 . 1 Known Exits Taken . | . . . . . . Unknown Exits Taken 5 | 1 1 1 1 1 . Scrap Searched 2 | . . 1 . 1 . Spaces Dug 67 | . 10 15 14 28 . Terrain Destroyed 191 | 4 11 55 38 32 51 Melee . | . . . . . . Projectile 13 | . 11 1 . . 1 AOE 178 | 4 . 54 38 32 50 Terrain Rammed . | . . . . . . Walls Destroyed . | . . . . . . Machines Disabled . | . . . . . . Actions | -11 -10 -10 -9 -9 -9 --------- Run | Scr Mat Min Mat Min Exi Total 3170 | 73 824 445 775 143 910 Wait 542 | 30 126 5 38 . 343 Move 2249 | 26 580 388 624 131 500 Hop . | . . . . . . Pick Up 41 | 1 17 5 11 . 7 Fast Attach 15 | 1 6 2 3 . 3 Attach 14 | . . . 4 . 10 Detach 4 | . 2 . . . 2 Swap 38 | 3 11 5 12 4 3 Drop 37 | 3 10 7 14 . 3 Fire 208 | 9 57 33 64 7 38 Melee 1 | . . . . . 1 Ram . | . . . . . . Kick . | . . . . . . Crush 21 | . 15 . 5 1 . Escape Stasis . | . . . . . . Rewire . | . . . . . . Trap . | . . . . . . Miscellaneous . | . . . . . . Route ------- -11/Scrapyard -10/Materials (discovered 4 exits: *Mat x3 / *Min) -10/Mines (discovered 2 exits: *Mat x2) -9/Materials (discovered 3 exits: [*Mat x2] / [*Min]) -9/Mines (discovered 2 exits: [*Mat] / *Exi) -9/Exiles (discovered 1 exit: [*Min]) History --------- Turn | Location | Event 4 | -11/Scrapyard | Discovered new exit (range 2) 103 | -11/Scrapyard | Entered Materials 225 | -10/Materials | Discovered new exit (range 16) 226 | -10/Materials | Central database locked down 318 | -10/Materials | Build established: Mutant 548 | -10/Materials | Discovered new exit (range 12) 659 | -10/Materials | Discovered new exit (range 16) 904 | -10/Materials | Repaired Assault Rifle 932 | -10/Materials | Repaired Lgt. Treads 961 | -10/Materials | Repaired Lgt. Treads 988 | -10/Materials | Repaired Lgt. Treads 1332 | -10/Materials | Discovered new exit (range 8) 1408 | -10/Materials | Entered Mines 1421 | -10/Mines | Assembled infested the area 1436 | -10/Mines | Received a Rocket Launcher from a helpful Derelict 1651 | -10/Mines | Learned Materials emergency access door positions 1773 | -10/Mines | Core integrity fell below 50% 1926 | -10/Mines | Discovered new exit (range 12) 2070 | -10/Mines | Assisted by bots powering up and referring to "LRC-V3" 2105 | -10/Mines | Discovered new exit (range 7) 2141 | -10/Mines | Entered Materials 2141 | -9/Materials | Accompanied by 2 allies 2141 | -9/Materials | Evolved 2 slots: Propulsion x1, Utility x1 2511 | -9/Materials | Discovered new exit (range 16) 2708 | -9/Materials | Build established: Scavenger-Mutant 2946 | -9/Materials | Discovered new exit (range 15) 3159 | -9/Materials | Discovered new exit (range 8) 3415 | -9/Materials | Entered Mines 3575 | -9/Mines | Discovered new exit (range 8) 3644 | -9/Mines | Deemed a non-threat by the Exiles lab entrance 3644 | -9/Mines | Discovered new exit (range 5) 3651 | -9/Mines | Entered Exiles 3691 | -9/Exiles | Met 8R-AWN 3718 | -9/Exiles | Met EX-HEX 3777 | -9/Exiles | Met EX-DEC 3806 | -9/Exiles | Learned location of Zion (-7) 4020 | -9/Exiles | Discovered new exit (range 14) 4242 | -9/Exiles | Build established: Hauler-Mutant 4252 | -9/Exiles | Met EX-BIN 4773 | -9/Exiles | Aligned with FarCom system 4777 | -9/Exiles | Given EX-Vault access code 4869 | -9/Exiles | Opened EX-Vault 4889 | -9/Exiles | Found Longsword +1 4898 | -9/Exiles | Found YOLO Cannon 4983 | -9/Exiles | Warned to stay clear of 0b10 Research branches 5032 | -9/Exiles | Exiles lab attacked by MAIN.C 5591 | -9/Exiles | System corruption reached 10% 5616 | -9/Exiles | Core integrity fell below 50% 5661 | -9/Exiles | Lost 10 parts (1p4n2u3w) 5701 | -9/Exiles | Destroyed 10 combat bots 5702 | -9/Exiles | Core integrity fell below 20% 5702 | -9/Exiles | Destroyed by H-55 Commando with Gauss Rifle Last Messages --------------- 05630_ Lgt. Armor Plating destroyed. 05638_ G-34 Mercenary destroyed. 05641_ System corrupted: Matter fused (-5). 05653_ Acquired Lgt. Treads. 05653_ Slug penetrates Wall. 05655_ P-60 Hacker destroyed. 05655_ G-34 Mercenary destroyed. 05656_ Penetrated by Slug. 05659_ H-55 Commando suffers critical hit (Meltdown). 05663_ Destroyed Aluminum Leg. 05663_ Destroyed Ion Engine. 05663_ G-34 Mercenary destroyed. 05665_ System corrupted: Component data lost. 05680_ P-60 Hacker destroyed. 05684_ The unstable cave ceiling collapses. 05701_ YOLO Cannon suddenly explodes. 05701_ Humpback destroyed. 05701_ Lgt. Treads destroyed. 05701_ Core damaged (-77). 05702_ Penetrated by Slug. Map ----- +----------------------------------------------------+ | ?????????????## ##???????????????????????????? | | ?????????????#X #????????????????????????????? | | ?????????????## #????????????????????????????? | | ??????????????# #????????????????????????????? | | ??????????????# #???###??????????????????????? | | ??????????????# #??"""""?????????????????????? | | ??????????????# ## """?????????????????????? | | ??????????????# X""?????????????????????? | | ??????????????# ## """?????????????????????? | | ???????#####??# #??"""""?????????????????????? | | ???????""""""?# #???###??????????????????????? | | ???????"""" ## #????????????????????????????? | | ??????#""X" #????????????????????????????? | | ??????#" #????????????????????????????? | | ??????#" ## #????????????????????????????? | | ??????#""""""?# #?#########??????????????????? | | ??????##"###??# #?#"""""""#??????????????????? | | ??????? ??????# #?#"""""""#??????????????????? | | ??????????????# #?#"""""""#??????????????????? | | ?????????????## [###"" """"#??????????????????? | | ?????????????#" =!%= ""#??????????????????? | | ?????????????#" %[* ""#??????????????????? | | ?????????????#" = ""#??????????????????? | | ?????????????#" "#??????????????????? | | ?#???????????#" **[ #???"??????????????? | | ""?????????# ==@[* "## ""??????????????? | | " """#???????# /[ """" ??????????????? | | " ????????# "######?????????????? | | " ????????# ! #?????????????? | | " "#???????## * # """#?????????????? | | ""???????? [ # """#?????????????? | | " "???????? l # ;;# """#?????????????? | | # #????????; ######?????????????? | | # ###?###### * # ##??????????????????? | | # #"###""""" % ## ##???????????????????? | | """""" " " ! ;;?###########??????????????? | | "" """ " p #####"""""""""##???????????? | | " " p " """ """"##??????????? | | "" " #??????????? | | " """#??????????? | | " "#??????????? | | " "##?????????# | | ""###???????# | | """""" """#??????## | | ######""" "#????### | | ""##????#####""" ##???# | | """##?????????##""" ##?## | | """##???????????#"""" ### | | ""#???????????##"" | | ########??####"""" | +----------------------------------------------------+ Best States ------------- Heat Dissipation 28 Energy Generation 14 Energy Capacity 265 Matter Stores 300 Matter Capacity 300 Sight Range 16 Terrain Scan Range 16 Terrain Scan Density 10 Armor Coverage 450 Evasion (%) 50 Targeting Accuracy 5 Recoil Reduction 3 Item Schematics ----------------- None Robot Schematics ------------------ None Fabricated ------------ Nothing Alien Tech Used ----------------- None Achievements -------------- None Challenges ------------ None Game ------ Seed SpikedEnhancedSlayer Manual? 0 Play Time 00:42:25 Cumulative 1140.3 hours Start 2022.01.23 @ 17:05:56 End 2022.01.23 @ 19:12:07 Sessions 3 Manual Loads 0 Difficulty Rogue Special Mode None Game No. 368 Rogue 368 Adventurer 0 Explorer 0 Win Type - Total 63 Types 13/17/11/3/1/2/13/2/1 Lore% 96 Gallery% 96 Achievement% 87 Wizard Run 0 Options --------- ASCII 0 Keyboard 0 Movement Numpad Keybinds 0 Fullscreen 0 Font 20/SmallcapsGlow Map View 76x50 Tactical HUD 1 Map Filters NONE Filters NONE Steam 1 RUN: b9f7897a-52fc-4a8f-8e86-5a0422d89d2c